{"text_format":"2","workbook":"xlsx","n_sheets":1,"sheets":["Feuil1"],"not_rendered":{"charts":0,"images":0,"macros":0,"external_links":0,"defined_names":0,"comments":0,"pivot_tables":0},"unopened":[],"bounds":{"document_bytes":16777216,"sheet_cells":100000,"run_cost":"one","rows_first":2000,"rows_last":500,"rows_between":2000,"halvings":0,"cell_chars":16384,"cell_head_chars":4096},"cells_cut":0,"cells_raw":0,"read":"whole","date_system":"1900"}

{"sheet":"Feuil1","index":0,"n_rows":89,"n_cols":16,"rows_kept":89,"cut":false,"hidden":false,"merged":[[66,1,67,4],[37,6,37,15],[86,0,87,4],[82,0,83,4],[16,6,16,15],[76,1,77,4],[44,6,44,15],[62,1,63,4],[51,6,51,15],[58,6,58,15],[1,0,1,4],[2,1,3,4],[2,6,2,15],[9,6,9,15],[42,1,43,4],[22,0,23,4],[23,6,23,15],[30,6,30,15]]}
[]
["Coupe FLA du FOOT à 7 semaine ELITE  2025-2026"]
[null,"1ère journée -  Lundi 22/09 au vendredi 26/09",{"$nulls":4},"Poule A"]
[{"$nulls":6},"Team ","Points","J","G","N","P","Bp","Bc","+/-","Forfait "]
[null,"ATLETICO BATIGNOLLES B","1-0","JOGA BONITO","Lundi 22/09 à 19h45 stade Max Roussié",null,"SPORTING CHOLO",10,3,2,1,0,13,7,{"$f":"+M5-N5","v":6}]
[null,"FANTASISTA B","4-3","TF1 SPORTS AS B","Lundi 22/09 à 20h30 à Chatillon",null,"ATLETICO BATIGNOLLES B",9,3,2,0,1,11,5,{"$f":"+M6-N6","v":6}]
[null,"BUTCHERS UNITED","1-1","SEP FOOT A","Lundi 22/09 à 20h00 à Pavillons sous bois",null,"JOGA BONITO",7,3,1,1,1,7,7,{"$f":"+M7-N7","v":0}]
[null,"LA DISTILLERIE B","2-9","BOUYGTEL SPORTS AS","Lundi 22/09 à 20h00 à Meudon ",null,"UAC PARIS 12",3,3,0,0,3,6,18,{"$f":"+M8-N8","v":-12}]
[null,"AZTECAS PARIS FC B","2-9","NEUILLY PLAISANCE SPORT A","Lundi 22/09 à 20h30 à Neuilly Plaisance"]
[null,"DEAUVIGOS FC","1-2","DOMINIQUE","Lundi  22/09 à 19h30 à Choisy N°3",null,"Poule  B"]
[null,"NATIXIS US","3-8","AC JUNIA PARIS B","Lundi 22/09 à 20h30 stade Henri Guerin",null,"Team ","Points","J","G","N","P","Bp","Bc","+/-","Forfait "]
[null,"ATLETICO BATIGNOLLES C","6-3","CACHAN FC","Mardi 23/09 à 20h00 à Cachan",null,"LE BONBON",12,3,3,0,0,22,11,{"$f":"+M12-N12","v":11}]
[null,"POTLOC FC","4-1","FC LOCAL","Mardi 23/09 à 19h30 à Bobigny N°3",null,"TC NOGENT",6,3,1,0,2,13,10,{"$f":"+M13-N13","v":3}]
[null,"FC CROCRO","0f-3","PAZIZOU A","Mardi 23/09 à 19h30 au Parc du Tremblay N°6",null,"PARIS CLICHY FC A",6,3,1,0,2,20,25,{"$f":"+M14-N14","v":-5}]
[null,"LE BONBON","10-7","PARIS CLICHY FC A","Mardi 23/09 à 20h45 stade Racine à Clichy",null,"UTOPIE SR",6,3,1,0,2,11,20,{"$f":"+M15-N15","v":-9}]
[null,"UTOPIE SR","3-2","TC NOGENT","Mardi 23/09 à 20h30 à Bobigny N°5"]
[null,"CAPITAL FC","0f-3","MINT TEA UNITED","Mercredi 24/09 à 19h30 à Bobigny N°1",null,"Poule C"]
[null,"ASC PARISII A","4-3","NOUVELLE FAMILLE PARISIENNE","Mercredi 24/09 à 20h15 Stade Paul Faber",null,"Team ","Points","J","G","N","P","Bp","Bc","+/-","Forfait "]
[null,"PETIT PIMENT AS","3-1","AL SACANA","Mercredi 24/09 à 21h00 stade Maryse Hilsz",null,"MINT TEA UNITED",10,3,2,1,0,7,2,{"$f":"+M19-N19","v":5}]
[null,"SECOURS CATHOLIQUE CEDRE","3-3","OCA UNITED","Mercredi 24/09 à 21h00 stade Maryse Hilsz",null,"ASC PARISII A",7,3,1,1,1,6,7,{"$f":"+M20-N20","v":-1}]
[null,"SPORTING CHOLO","6-2","UAC PARIS 12","Mercredi 24/09 à 21h00 stade JP Garchery",null,"CAPITAL FC",6,3,1,1,1,8,9,{"$f":"+M21-N21","v":-1},1]
[null,"US NEW TEAM","4-1","FC SAINT MANDE SUD","Jeudi 25/09 à 19h30 au Parc du Tremblay N°6",null,"NOUVELLE FAMILLE PARISIENNE",4,3,0,1,2,9,10,{"$f":"+M22-N22","v":-1}]
["2ème journée -  Lundi 29/09 au vendredi 03/10"]
[{"$nulls":6},"Poule D"]
[null,"JOGA BONITO","4-4","SPORTING CHOLO","Lundi 29/09 à 21h30 à Chatillon",null,"Team ","Points","J","G","N","P","Bp","Bc","+/-","Forfait "]
[null,"BOUYGTEL SPORTS AS","8-6","SECOURS CATHOLIQUE CEDRE","Lundi 29/09 à 20h30 à Meudon ",null,"FANTASISTA B",12,3,3,0,0,11,5,{"$f":"+M26-N26","v":6}]
[null,"OCA UNITED","6-4","LA DISTILLERIE B","Lundi 29/09 à 19h30 à Choisy  N°3",null,"POTLOC FC",9,3,2,0,1,8,4,{"$f":"+M27-N27","v":4}]
[null,"NEUILLY PLAISANCE SPORT A","6-6","DEAUVIGOS FC","Lundi 29/09 à 20h30 à Neuilly Plaisance",null,"FC LOCAL",6,3,1,0,2,6,11,{"$f":"+M28-N28","v":-5}]
[null,"AL SACANA","3-6","NATIXIS US","Lundi 29/09 à 20h30 stade Henri Guerin",null,"TF1 SPORTS AS B",3,3,0,0,3,6,11,{"$f":"+M29-N29","v":-5}]
[null,"TF1 SPORTS AS B","1-3","POTLOC FC","Lundi 29/09 à 19h30 stade Suzanne lenglen N°3"]
[null,"PAZIZOU A","0-12","SEP FOOT A","Lundi 29/09 à 20h00 à Pavillons sous bois",null,"Poule  E"]
[null,"FC LOCAL","1-5","FANTASISTA B","Lundi 29/09 à 20h30 à Chatillon",null,"Team ","Points","J","G","N","P","Bp","Bc","+/-","Forfait "]
[null,"PARIS CLICHY FC A","10-7","UTOPIE SR","Mardi 30/09 à 20h45 stade Racine à Clichy",null,"SEP FOOT A",10,3,2,1,0,16,2,{"$f":"+M33-N33","v":14}]
[null,"TC NOGENT","3-4","LE BONBON","Mardi 30/09 à 19h30 au Parc du Tremblay N°6",null,"BUTCHERS UNITED",10,3,2,1,0,9,4,{"$f":"+M34-N34","v":5}]
[null,"BUTCHERS UNITED","4-1","FC CROCRO","Mardi 30/09 à 19h30 au Parc du Tremblay N°6",null,"PAZIZOU A",6,3,1,0,2,5,16,{"$f":"+M35-N35","v":-11}]
[null,"CACHAN FC","4-1","US NEW TEAM","Mardi 30/09 à 20h00 à Cachan",null,"FC CROCRO",2,3,0,0,3,2,10,{"$f":"+M36-N36","v":-8},1]
[null,"UAC PARIS 12","2-9","ATLETICO BATIGNOLLES B","Mercredi 01/10 à 21h00 stade JP Garchery"]
[null,"MINT TEA UNITED","2-0","ASC PARISII A","Mercredi 01/10 à 20h15 Stade Paul Faber",null,"Poule F"]
[null,"NOUVELLE FAMILLE PARISIENNE","4-6","CAPITAL FC","Mercredi 01/10 à 19h30 au Tremblay N°6",null,"Team ","Points","J","G","N","P","Bp","Bc","+/-","Forfait "]
[null,"FC SAINT MANDE SUD","3-3","ATLETICO BATIGNOLLES C","Mercredi 01/10 à 19h30 au Parc du Tremblay N°6",null,"CACHAN FC",9,3,2,0,1,17,11,{"$f":"+M40-N40","v":6}]
[null,"DOMINIQUE","4-3","AZTECAS PARIS FC B","Mercredi 01/10 à 20h00 à Choisy N°21",null,"US NEW TEAM",9,3,2,0,1,8,7,{"$f":"+M41-N41","v":1}]
[null,"AC JUNIA PARIS B","8-0","PETIT PIMENT AS","Jeudi 02/10 à 21h00 à Bobigny N°5",null,"ATLETICO BATIGNOLLES C",7,3,1,1,1,11,9,{"$f":"+M42-N42","v":2}]
[null,"3ème journée -  Lundi 06/10 au vendredi 10/10",{"$nulls":4},"FC SAINT MANDE SUD",4,3,0,1,2,8,17,{"$f":"+M43-N43","v":-9}]
[]
[null,"ATLETICO BATIGNOLLES B","1-3","SPORTING CHOLO","Lundi 06/10 à 19h45 stade Max Roussié",null,"Poule G"]
[null,"MINT TEA UNITED","2-2","NOUVELLE FAMILLE PARISIENNE","Lundi 06/10 à 19h30 stade Suzanne lenglen N°3",null,"Team ","Points","J","G","N","P","Bp","Bc","+/-","Forfait "]
[null,"FANTASISTA B","2-1","POTLOC FC","Lundi 06/10 à 20h30 à Chatillon",null,"BOUYGTEL SPORTS AS",12,3,3,0,0,23,11,{"$f":"+M47-N47","v":12}]
[null,"TF1 SPORTS AS B","2-4","FC LOCAL","Lundi 06/10 à 19h30 stade Suzanne lenglen N°3",null,"OCA UNITED",7,3,1,1,1,12,13,{"$f":"+M48-N48","v":-1}]
[null,"FC CROCRO","1-3","SEP FOOT A","Lundi 06/10 à 20h00 à Pavillons sous bois",null,"LA DISTILLERIE B",6,3,1,0,2,8,16,{"$f":"+M49-N49","v":-8}]
[null,"LA DISTILLERIE B","2-1","SECOURS CATHOLIQUE CEDRE","Lundi 06/10 à 21h30 à Chatillon",null,"SECOURS CATHOLIQUE CEDRE",4,3,0,1,2,10,13,{"$f":"+M50-N50","v":-3}]
[null,"BOUYGTEL SPORTS AS","6-3","OCA UNITED","Lundi 06/10 à 20h30 à Meudon "]
[null,"AZTECAS PARIS FC B","5-2","DEAUVIGOS FC","Lundi 06/10 à 20h00 stade Louis Lumière",null,"Poule  H"]
[null,"NEUILLY PLAISANCE SPORT A","5-1","DOMINIQUE","Lundi 06/10 à 20h30 à Neuilly Plaisance",null,"Team ","Points","J","G","N","P","Bp","Bc","+/-","Forfait "]
[null,"NATIXIS US","6-1","PETIT PIMENT AS","Lundi 06/10 à 20h30 stade Henri Guerin",null,"NEUILLY PLAISANCE SPORT A",10,3,2,1,0,20,9,{"$f":"+M54-N54","v":11}]
[null,"CACHAN FC","10-4","FC SAINT MANDE SUD","Mardi 07/10 à 20h00 à Cachan",null,"DOMINIQUE",9,3,2,0,1,7,9,{"$f":"+M55-N55","v":-2}]
[null,"PARIS CLICHY FC A","3-8","TC NOGENT","Mardi 07/10 à 20h45 stade Racine à Clichy",null,"AZTECAS PARIS FC B",6,3,1,0,2,10,15,{"$f":"+M56-N56","v":-5}]
[null,"JOGA BONITO","3-2","UAC PARIS 12","Mercredi 08/10 à 21h00 stade JP Garchery",null,"DEAUVIGOS FC",4,3,0,1,2,9,13,{"$f":"+M57-N57","v":-4}]
[null,"LE BONBON","8-1","UTOPIE SR","Mercredi 08/10 à 19h30 à Bobigny N°2"]
[null,"CAPITAL FC","2-2","ASC PARISII A","Mercredi 08/10 à 20h15 Stade Paul Faber",null,"Poule I"]
[null,"PAZIZOU A","2-4","BUTCHERS UNITED","Mercredi 08/10 à 21h00 à Bobigny N°5",null,"Team ","Points","J","G","N","P","Bp","Bc","+/-","Forfait "]
[null,"ATLETICO BATIGNOLLES C","2-3","US NEW TEAM","Mercredi 08/10 à 21h00 stade Maryse Hilsz",null,"AC JUNIA PARIS B",12,3,3,0,0,25,4,{"$f":"+M61-N61","v":21}]
[null,"AC JUNIA PARIS B","9-1","AL SACANA","Jeudi 09/10 à 21h00 à Bobigny N°5",null,"NATIXIS US",9,3,2,0,1,15,12,{"$f":"+M62-N62","v":3}]
[null,"Tour de cadrages - Lundi 27/10 au Vendredi 31/10",{"$nulls":4},"PETIT PIMENT AS",6,3,1,0,2,4,15,{"$f":"+M63-N63","v":-11}]
[{"$nulls":6},"AL SACANA",3,3,0,0,3,5,18,{"$f":"+M64-N64","v":-13}]
[55,"ASC PARISII A","3-3 1p-2p","US NEW TEAM","Mercredi 29/10 à 20h15 Stade Paul Faber"]
[56,"NATIXIS US","1-6","DOMINIQUE","Lundi 27/10 à 20h30 stade Henri Guerin"]
[null,"1/8ème de Final-  Lundi 16/02 au Mercredi 18/02"]
[]
[58,"ATLETICO BATIGNOLLES B ",null,"OCA UNITED","Lundi 16/02 à 19h45 stade Max Roussié"]
[60,"FANTASISTA B",null,"TC NOGENT","Lundi 16/02 à 20h30 à Chatillon"]
[62,"DOMINIQUE",null,"BOUYGTEL SPORTS AS","Lundi 16/02 à 19h30 à Choisy N°03 (Plaine Nord)"]
[64,"SEP FOOT A ",null,"CACHAN FC","Lundi 16/02 à 20h30 à Pavillons sous bois"]
[57,"BUTCHERS UNITED",null,"LE BONBON","Mardi 17/02 à 19h30 au Parc du Tremblay N°6"]
[59,"SPORTING CHOLO",null,"US NEW TEAM","Mardi 17/02 à 21h00 stade Jules Noel"]
[61,"POTLOC FC",null,"NEUILLY PLAISANCE SPORT A","Mercredi 18/02 à 19h30 à Bobigny N°2"]
[63,"MINT TEA UNITED",null,"AC JUNIA PARIS B","Mercredi 18/02 à 21h00 à Bobigny N°2"]
[null,"Quart de finale - Mardi 17/03 au Mercredi 18/03"]
[]
[65,"Vainqueur n°58",null,"Vainqueur n°60","Mardi 17/03 à 19h30 à Bobigny N°2"]
[66,"Vainqueur n°61",null,"Vainqueur n°59","Mardi 17/03 à 19h30 à Bobigny N°2"]
[67,"Vainqueur n°64",null,"Vainqueur n°57","Mercredi 18/03 à 19h30 au Tremblay N°8"]
[68,"Vainqueur n°63",null,"Vainqueur n°62","Mercredi 18/03 à 19h30 au Tremblay N°8"]
["                                  Demie finale - Mercredi 15/04 "]
[]
[69,"Vainqueur n°68",null,"Vainqueur n°66","Mercredi 15/04 à 19h30 à Bobigny N°2"]
[70,"Vainqueur n°67",null,"Vainqueur n°65","Mercredi 15/04 à 21h00 à Bobigny N°2"]
["Finale "]
[]
[71,"Vainqueur n°69",null,"Vainqueur n°70","A définir "]